[Event "*** Titled Tuesday Blitz"]
[Site "Chess.com"]
[Date "2021.04.20"]
[Round "9"]
[White "KeithArkell"]
[Black "Manukyan_Artak"]
[Result "0-1"]
[WhiteElo "2596"]
[BlackElo "2443"]
[TimeControl "180+1"]
[EndTime "11:41:08 PDT"]
[Termination "Manukyan_Artak won by resignation"]

1. d4 {[%clk 0:03:00.9]} 1... Nf6 {[%clk 0:02:57.6]} 2. Nf3 {[%clk 0:02:58.9]}
2... d5 {[%clk 0:02:56.8]} 3. c4 {[%clk 0:02:58.9]} 3... dxc4 {[%clk 0:02:56.9]}
4. e3 {[%clk 0:02:58.7]} 4... e6 {[%clk 0:02:54.9]} 5. Bxc4 {[%clk 0:02:58.7]}
5... c5 {[%clk 0:02:55.1]} 6. Nc3 {[%clk 0:02:58.8]} 6... a6 {[%clk 0:02:54.9]}
7. d5 {[%clk 0:02:58.8]} 7... b5 {[%clk 0:02:54.3]} 8. Bb3 {[%clk 0:02:53.1]}
8... c4 {[%clk 0:02:52]} 9. dxe6 {[%clk 0:02:49.8]} 9... cxb3 {[%clk 0:02:41.2]}
10. exf7+ {[%clk 0:02:48.2]} 10... Ke7 {[%clk 0:02:41.3]} 11. Qxb3 {[%clk
0:02:48.2]} 11... Be6 {[%clk 0:02:34.3]} 12. Qc2 {[%clk 0:02:47.9]} 12... Bc4
{[%clk 0:02:14]} 13. b3 {[%clk 0:02:43.1]} 13... Qd3 {[%clk 0:02:13.6]} 14. Ba3+
{[%clk 0:02:41.8]} 14... Ke6 {[%clk 0:02:01.8]} 15. bxc4 {[%clk 0:02:32.4]}
15... Qxc2 {[%clk 0:01:57.9]} 16. Nd4+ {[%clk 0:02:32.4]} 16... Kxf7 {[%clk
0:01:49.7]} 17. Nxc2 {[%clk 0:02:32.2]} 17... Bxa3 {[%clk 0:01:48.1]} 18. Nxa3
{[%clk 0:02:32.3]} 18... b4 {[%clk 0:01:48.4]} 19. Rb1 {[%clk 0:02:32.4]} 19...
bxc3 {[%clk 0:01:46.7]} 20. Rb7+ {[%clk 0:02:32.2]} 20... Nbd7 {[%clk
0:01:45.7]} 21. Kd1 {[%clk 0:02:32.2]} 21... Rab8 {[%clk 0:01:44.1]} 22. Ra7
{[%clk 0:02:26.6]} 22... Rb2 {[%clk 0:01:35.6]} 23. Rxa6 {[%clk 0:02:17]} 23...
Nc5 {[%clk 0:01:26.8]} 24. Ra7+ {[%clk 0:02:15.9]} 24... Kg6 {[%clk 0:01:26.3]}
0-1

[Event "*** Titled Tuesday Blitz"]
[Site "Chess.com"]
[Date "2021.04.20"]
[Round "9"]
[White "elohunter1999"]
[Black "KacperPolOK"]
[Result "0-1"]
[WhiteElo "2476"]
[BlackElo "2374"]
[TimeControl "180+1"]
[EndTime "11:41:33 PDT"]
[Termination "KacperPolOK won by checkmate"]

1. d4 {[%clk 0:03:00.9]} 1... e6 {[%clk 0:02:50]} 2. e4 {[%clk 0:02:58.4]} 2...
d5 {[%clk 0:02:49.4]} 3. Nd2 {[%clk 0:02:57.8]} 3... Nf6 {[%clk 0:02:49.4]} 4.
e5 {[%clk 0:02:57.1]} 4... Nfd7 {[%clk 0:02:49.7]} 5. f4 {[%clk 0:02:57.2]} 5...
c5 {[%clk 0:02:49.3]} 6. c3 {[%clk 0:02:54.5]} 6... Nc6 {[%clk 0:02:49.7]} 7.
Ndf3 {[%clk 0:02:54.4]} 7... Qb6 {[%clk 0:02:49.5]} 8. g3 {[%clk 0:02:53.9]}
8... cxd4 {[%clk 0:02:47.8]} 9. cxd4 {[%clk 0:02:53.4]} 9... Bb4+ {[%clk
0:02:48.5]} 10. Kf2 {[%clk 0:02:53.2]} 10... f6 {[%clk 0:02:49.1]} 11. Kg2
{[%clk 0:02:44.3]} 11... g5 {[%clk 0:02:47.8]} 12. exf6 {[%clk 0:02:12.7]} 12...
g4 {[%clk 0:02:42.3]} 13. f7+ {[%clk 0:02:11.7]} 13... Kxf7 {[%clk 0:02:35]} 14.
Ne5+ {[%clk 0:02:05.2]} 14... Ndxe5 {[%clk 0:02:27.3]} 15. dxe5 {[%clk
0:02:06.1]} 15... h5 {[%clk 0:02:24.8]} 16. h3 {[%clk 0:02:03.7]} 16... Bd7
{[%clk 0:02:03.3]} 17. hxg4 {[%clk 0:02:03.4]} 17... hxg4 {[%clk 0:02:03.3]} 18.
Rxh8 {[%clk 0:02:01.1]} 18... Rxh8 {[%clk 0:02:04.2]} 19. Qxg4 {[%clk
0:02:01.5]} 19... Nd4 {[%clk 0:01:47.6]} 20. Be3 {[%clk 0:01:53.1]} 20... Bc5
{[%clk 0:01:46.3]} 21. Rd1 {[%clk 0:01:35.9]} 21... Nf5 {[%clk 0:01:41.7]} 22.
Bc1 {[%clk 0:01:29.3]} 22... Bxg1 {[%clk 0:01:39.7]} 23. Bd3 {[%clk 0:01:22.5]}
23... Qf2# {[%clk 0:01:36.7]} 0-1

[Event "*** Titled Tuesday Blitz"]
[Site "Chess.com"]
[Date "2021.04.20"]
[Round "9"]
[White "barbara25"]
[Black "jucAxx"]
[Result "0-1"]
[WhiteElo "2301"]
[BlackElo "2174"]
[TimeControl "180+1"]
[EndTime "11:42:02 PDT"]
[Termination "jucAxx won by resignation"]

1. e4 {[%clk 0:02:56.6]} 1... e6 {[%clk 0:03:00]} 2. d4 {[%clk 0:02:55.7]} 2...
d5 {[%clk 0:02:59.5]} 3. Nc3 {[%clk 0:02:55.9]} 3... Bb4 {[%clk 0:02:58.1]} 4.
e5 {[%clk 0:02:55.7]} 4... c5 {[%clk 0:02:56.8]} 5. a3 {[%clk 0:02:55.9]} 5...
Bxc3+ {[%clk 0:02:56.4]} 6. bxc3 {[%clk 0:02:56.8]} 6... Qc7 {[%clk 0:02:54.2]}
7. Qg4 {[%clk 0:02:56.5]} 7... Ne7 {[%clk 0:02:49.5]} 8. Qxg7 {[%clk 0:02:55.8]}
8... Rg8 {[%clk 0:02:49.6]} 9. Qxh7 {[%clk 0:02:56.2]} 9... cxd4 {[%clk
0:02:48.7]} 10. Ne2 {[%clk 0:02:56.5]} 10... Nbc6 {[%clk 0:02:47.4]} 11. f4
{[%clk 0:02:56]} 11... Bd7 {[%clk 0:02:42.9]} 12. Qd3 {[%clk 0:02:54.7]} 12...
dxc3 {[%clk 0:02:42.9]} 13. Nxc3 {[%clk 0:02:53.4]} 13... a6 {[%clk 0:02:06.3]}
14. Rb1 {[%clk 0:02:49.3]} 14... Nf5 {[%clk 0:02:04.1]} 15. Ne2 {[%clk
0:02:24.3]} 15... Na5 {[%clk 0:02:00.7]} 16. Bd2 {[%clk 0:01:58.7]} 16... Bb5
{[%clk 0:01:57.7]} 17. Bxa5 {[%clk 0:01:31.7]} 17... Qxa5+ {[%clk 0:01:53.2]}
18. Qc3 {[%clk 0:01:31.9]} 18... Qxc3+ {[%clk 0:01:49.2]} 19. Nxc3 {[%clk
0:01:31.5]} 19... Bxf1 {[%clk 0:01:49.3]} 20. Kxf1 {[%clk 0:01:31.7]} 20... Rc8
{[%clk 0:01:46.1]} 21. Nd1 {[%clk 0:01:18.8]} 21... Rxc2 {[%clk 0:01:43.9]} 22.
Rxb7 {[%clk 0:01:16.1]} 22... Rgxg2 {[%clk 0:01:24.9]} 23. h4 {[%clk 0:01:08.7]}
23... Ng3+ {[%clk 0:01:23.9]} 0-1

[Event "*** Titled Tuesday Blitz"]
[Site "Chess.com"]
[Date "2021.04.20"]
[Round "9"]
[White "Leo_C"]
[Black "kubal123"]
[Result "0-1"]
[WhiteElo "2410"]
[BlackElo "2263"]
[TimeControl "180+1"]
[EndTime "11:42:03 PDT"]
[Termination "kubal123 won by resignation"]

1. d4 {[%clk 0:03:00.9]} 1... d5 {[%clk 0:02:58.9]} 2. c4 {[%clk 0:02:57.5]}
2... e6 {[%clk 0:02:59.3]} 3. Nc3 {[%clk 0:02:57]} 3... Nf6 {[%clk 0:02:59.1]}
4. Nf3 {[%clk 0:02:56.7]} 4... Be7 {[%clk 0:02:58.9]} 5. Bg5 {[%clk 0:02:56.5]}
5... O-O {[%clk 0:02:57.8]} 6. e3 {[%clk 0:02:56.7]} 6... b6 {[%clk 0:02:56.1]}
7. Rc1 {[%clk 0:02:56.2]} 7... Bb7 {[%clk 0:02:56.4]} 8. Bd3 {[%clk 0:02:55.3]}
8... Nbd7 {[%clk 0:02:55.2]} 9. O-O {[%clk 0:02:54.8]} 9... c5 {[%clk
0:02:55.3]} 10. cxd5 {[%clk 0:02:54.6]} 10... exd5 {[%clk 0:02:54.1]} 11. Ne5
{[%clk 0:02:50.7]} 11... Nxe5 {[%clk 0:02:38.1]} 12. dxe5 {[%clk 0:02:47.1]}
12... Nd7 {[%clk 0:02:37.4]} 13. Bxe7 {[%clk 0:02:42]} 13... Qxe7 {[%clk
0:02:38.3]} 14. f4 {[%clk 0:02:42.1]} 14... f6 {[%clk 0:02:28.6]} 15. Bc2 {[%clk
0:02:17.7]} 15... fxe5 {[%clk 0:02:06.9]} 16. Nxd5 {[%clk 0:02:16.5]} 16... Qd6
{[%clk 0:01:53.5]} 17. Bb3 {[%clk 0:02:13]} 17... Kh8 {[%clk 0:01:53.9]} 18. e4
{[%clk 0:01:56.1]} 18... exf4 {[%clk 0:01:51.4]} 19. Qh5 {[%clk 0:01:55.3]}
19... Bxd5 {[%clk 0:01:41.9]} 20. Bxd5 {[%clk 0:01:53.5]} 20... Nf6 {[%clk
0:01:42.2]} 21. Qf3 {[%clk 0:01:49.1]} 21... Nxd5 {[%clk 0:01:41.8]} 22. exd5
{[%clk 0:01:50]} 22... Rad8 {[%clk 0:01:41.6]} 23. Rfe1 {[%clk 0:01:45.5]} 23...
Qxd5 {[%clk 0:01:39.3]} 24. Qxd5 {[%clk 0:01:41.9]} 24... Rxd5 {[%clk
0:01:40.2]} 25. Re7 {[%clk 0:01:41.9]} 25... Rd2 {[%clk 0:01:35.4]} 26. Rxa7
{[%clk 0:01:37.3]} 26... Rxb2 {[%clk 0:01:35.2]} 27. Rb7 {[%clk 0:01:32.2]}
27... Rd8 {[%clk 0:01:26]} 28. Rxb6 {[%clk 0:01:25.8]} 28... Rxb6 {[%clk
0:01:24.2]} 0-1

[Event "*** Titled Tuesday Blitz"]
[Site "Chess.com"]
[Date "2021.04.20"]
[Round "9"]
[White "sergeikim"]
[Black "Cuajada_Zero"]
[Result "0-1"]
[WhiteElo "2493"]
[BlackElo "2313"]
[TimeControl "180+1"]
[EndTime "11:42:12 PDT"]
[Termination "Cuajada_Zero won by resignation"]

1. d4 {[%clk 0:03:00.9]} 1... d5 {[%clk 0:02:59.8]} 2. c4 {[%clk 0:03:00.9]}
2... e6 {[%clk 0:02:59.7]} 3. Nc3 {[%clk 0:03:00.8]} 3... c6 {[%clk 0:02:59.3]}
4. e3 {[%clk 0:03:00]} 4... Bd6 {[%clk 0:02:58.6]} 5. Nf3 {[%clk 0:02:58.5]}
5... f6 {[%clk 0:02:55]} 6. Bd3 {[%clk 0:02:58]} 6... f5 {[%clk 0:02:55.1]} 7.
O-O {[%clk 0:02:45.3]} 7... Nf6 {[%clk 0:02:53]} 8. Qc2 {[%clk 0:02:41.7]} 8...
O-O {[%clk 0:02:37.9]} 9. cxd5 {[%clk 0:02:41]} 9... exd5 {[%clk 0:02:38.8]} 10.
Bxf5 {[%clk 0:02:39.7]} 10... Bxf5 {[%clk 0:02:39.7]} 11. Qxf5 {[%clk
0:02:39.4]} 11... Ne4 {[%clk 0:02:38.9]} 12. Qe6+ {[%clk 0:02:37.7]} 12... Kh8
{[%clk 0:02:38.3]} 13. Nxe4 {[%clk 0:02:37.6]} 13... dxe4 {[%clk 0:02:36.6]} 14.
Qxe4 {[%clk 0:02:35.7]} 14... Nd7 {[%clk 0:02:36.1]} 15. Qh4 {[%clk 0:02:27.9]}
15... Qe8 {[%clk 0:02:27.8]} 16. Qh3 {[%clk 0:01:59.2]} 16... Nf6 {[%clk
0:02:25.2]} 17. Bd2 {[%clk 0:01:46.8]} 17... Ne4 {[%clk 0:02:23.5]} 18. Bc3
{[%clk 0:01:46]} 18... Rf6 {[%clk 0:02:22.8]} 19. Ne5 {[%clk 0:01:39.8]} 19...
Nxc3 {[%clk 0:02:17.9]} 20. bxc3 {[%clk 0:01:39.3]} 20... Bxe5 {[%clk
0:02:18.5]} 21. dxe5 {[%clk 0:01:38.5]} 21... Qxe5 {[%clk 0:02:19.4]} 22. Rac1
{[%clk 0:01:22]} 22... Rd8 {[%clk 0:02:12.3]} 23. Rfd1 {[%clk 0:01:16.1]} 23...
Rfd6 {[%clk 0:02:11.4]} 24. Rxd6 {[%clk 0:01:15.1]} 24... Qxd6 {[%clk
0:02:12.3]} 25. g3 {[%clk 0:01:00.5]} 25... Qa3 {[%clk 0:02:05.9]} 26. Rb1
{[%clk 0:00:50.6]} 26... Qxa2 {[%clk 0:01:59.6]} 27. Rxb7 {[%clk 0:00:49.9]}
27... Rd1+ {[%clk 0:01:56.6]} 28. Kg2 {[%clk 0:00:49.8]} 28... Qd5+ {[%clk
0:01:56.9]} 29. e4 {[%clk 0:00:42.8]} 29... Qxe4+ {[%clk 0:01:55.9]} 0-1

[Event "*** Titled Tuesday Blitz"]
[Site "Chess.com"]
[Date "2021.04.20"]
[Round "9"]
[White "ChelsieMonica"]
[Black "HrvojeZagreb"]
[Result "1-0"]
[WhiteElo "2389"]
[BlackElo "2273"]
[TimeControl "180+1"]
[EndTime "11:42:16 PDT"]
[Termination "ChelsieMonica won by resignation"]

1. e4 {[%clk 0:03:00.9]} 1... e6 {[%clk 0:02:59.5]} 2. f4 {[%clk 0:03:01.1]}
2... d5 {[%clk 0:02:59.5]} 3. exd5 {[%clk 0:03:00.6]} 3... exd5 {[%clk
0:02:59.3]} 4. Nf3 {[%clk 0:03:01.5]} 4... Bd6 {[%clk 0:02:59.4]} 5. d3 {[%clk
0:03:01.1]} 5... Ne7 {[%clk 0:02:56.2]} 6. Be2 {[%clk 0:03:02]} 6... c6 {[%clk
0:02:52.1]} 7. O-O {[%clk 0:03:01.9]} 7... O-O {[%clk 0:02:52]} 8. Nc3 {[%clk
0:03:01.6]} 8... Nd7 {[%clk 0:02:48.2]} 9. g3 {[%clk 0:03:01.9]} 9... Nf6 {[%clk
0:02:47.7]} 10. Ne5 {[%clk 0:03:01.6]} 10... Bh3 {[%clk 0:02:39.9]} 11. Rf2
{[%clk 0:02:59.4]} 11... Ng6 {[%clk 0:02:33.9]} 12. d4 {[%clk 0:02:56.9]} 12...
Ne4 {[%clk 0:02:20.9]} 13. Nxe4 {[%clk 0:02:55.8]} 13... dxe4 {[%clk 0:02:21.8]}
14. Be3 {[%clk 0:02:54.7]} 14... Ne7 {[%clk 0:02:12]} 15. Bg4 {[%clk 0:02:49.4]}
15... Bxg4 {[%clk 0:02:02.8]} 16. Qxg4 {[%clk 0:02:50.3]} 16... Qc8 {[%clk
0:01:54]} 17. f5 {[%clk 0:02:49.9]} 17... f6 {[%clk 0:01:37.6]} 18. Bh6 {[%clk
0:02:44.6]} 18... g5 {[%clk 0:01:12]} 19. fxg6 {[%clk 0:02:43.4]} 19... Qxg4
{[%clk 0:00:52.8]} 20. Nxg4 {[%clk 0:02:44.3]} 20... f5 {[%clk 0:00:52.2]} 21.
gxh7+ {[%clk 0:02:37.6]} 21... Kxh7 {[%clk 0:00:48.3]} 22. Bxf8 {[%clk
0:02:38.5]} 22... Rxf8 {[%clk 0:00:46.7]} 23. Raf1 {[%clk 0:02:32.1]} 23... c5
{[%clk 0:00:44.3]} 24. c3 {[%clk 0:02:31.7]} 24... cxd4 {[%clk 0:00:38.2]} 25.
cxd4 {[%clk 0:02:32.6]} 25... Bc7 {[%clk 0:00:18.9]} 26. Ne3 {[%clk 0:02:32.1]}
26... Bb6 {[%clk 0:00:11.4]} 27. Nxf5 {[%clk 0:02:32.2]} 27... Nxf5 {[%clk
0:00:11]} 28. Rxf5 {[%clk 0:02:33.1]} 28... Bxd4+ {[%clk 0:00:10.9]} 29. Kg2
{[%clk 0:02:33.3]} 29... Rxf5 {[%clk 0:00:09.2]} 30. Rxf5 {[%clk 0:02:34.2]}
30... Bxb2 {[%clk 0:00:09.6]} 31. Rf7+ {[%clk 0:02:34.1]} 31... Kg6 {[%clk
0:00:09.3]} 32. Rxb7 {[%clk 0:02:34]} 32... Bd4 {[%clk 0:00:09.4]} 33. Rb4
{[%clk 0:02:33.8]} 1-0

[Event "*** Titled Tuesday Blitz"]
[Site "Chess.com"]
[Date "2021.04.20"]
[Round "9"]
[White "viktorgen2021"]
[Black "OlifantCZ"]
[Result "1-0"]
[WhiteElo "2371"]
[BlackElo "2259"]
[TimeControl "180+1"]
[EndTime "11:42:30 PDT"]
[Termination "viktorgen2021 won by resignation"]

1. d4 {[%clk 0:02:56.3]} 1... Nf6 {[%clk 0:02:59.3]} 2. Nf3 {[%clk 0:02:56]}
2... g6 {[%clk 0:02:59.5]} 3. g3 {[%clk 0:02:55.6]} 3... Bg7 {[%clk 0:02:59.9]}
4. Bg2 {[%clk 0:02:56.5]} 4... O-O {[%clk 0:03:00.2]} 5. O-O {[%clk 0:02:57.2]}
5... d6 {[%clk 0:02:58.5]} 6. a4 {[%clk 0:02:56.6]} 6... Bg4 {[%clk 0:02:48.1]}
7. Nc3 {[%clk 0:02:52.2]} 7... Qc8 {[%clk 0:02:46.6]} 8. e4 {[%clk 0:02:49.1]}
8... Bh3 {[%clk 0:02:38.6]} 9. Re1 {[%clk 0:02:40.6]} 9... Bxg2 {[%clk 0:02:37]}
10. Kxg2 {[%clk 0:02:40.2]} 10... Nc6 {[%clk 0:02:32.5]} 11. d5 {[%clk
0:02:28.3]} 11... Nd8 {[%clk 0:02:22.5]} 12. e5 {[%clk 0:02:23.2]} 12... dxe5
{[%clk 0:02:20.8]} 13. Nxe5 {[%clk 0:02:24.1]} 13... Nd7 {[%clk 0:02:14.9]} 14.
Bf4 {[%clk 0:02:17.8]} 14... a6 {[%clk 0:01:53.1]} 15. Qf3 {[%clk 0:02:10.8]}
15... e6 {[%clk 0:01:43.2]} 16. Rad1 {[%clk 0:02:01.9]} 16... c6 {[%clk
0:01:22.3]} 17. Nxd7 {[%clk 0:01:51.3]} 17... Qxd7 {[%clk 0:00:42.5]} 18. dxe6
{[%clk 0:01:49.9]} 18... Qxe6 {[%clk 0:00:35]} 19. Rxe6 {[%clk 0:01:47.8]} 19...
Nxe6 {[%clk 0:00:35.6]} 20. Bd6 {[%clk 0:01:42.3]} 20... Rfd8 {[%clk 0:00:33.2]}
21. Ne4 {[%clk 0:01:38.9]} 1-0

[Event "*** Titled Tuesday Blitz"]
[Site "Chess.com"]
[Date "2021.04.20"]
[Round "9"]
[White "SilviusTiberius"]
[Black "Piotrek1979"]
[Result "1-0"]
[WhiteElo "2582"]
[BlackElo "2418"]
[TimeControl "180+1"]
[EndTime "11:42:32 PDT"]
[Termination "SilviusTiberius won by resignation"]

1. e4 {[%clk 0:03:00.9]} 1... Nc6 {[%clk 0:02:57.4]} 2. Nf3 {[%clk 0:02:59.1]}
2... d6 {[%clk 0:02:56.8]} 3. Nc3 {[%clk 0:02:58.1]} 3... Nf6 {[%clk 0:02:57]}
4. d4 {[%clk 0:02:58.2]} 4... Bg4 {[%clk 0:02:55.8]} 5. Be3 {[%clk 0:02:58.2]}
5... e6 {[%clk 0:02:55.7]} 6. h3 {[%clk 0:02:58.3]} 6... Bh5 {[%clk 0:02:54.5]}
7. g4 {[%clk 0:02:50.9]} 7... Bg6 {[%clk 0:02:53.5]} 8. d5 {[%clk 0:02:51.5]}
8... exd5 {[%clk 0:02:46.5]} 9. exd5 {[%clk 0:02:51.4]} 9... Nb8 {[%clk
0:02:35]} 10. Nd4 {[%clk 0:02:04.9]} 10... h5 {[%clk 0:02:24.9]} 11. Bg2 {[%clk
0:01:53.1]} 11... hxg4 {[%clk 0:02:22.9]} 12. hxg4 {[%clk 0:01:54]} 12... Rxh1+
{[%clk 0:02:22.9]} 13. Bxh1 {[%clk 0:01:54.9]} 13... Na6 {[%clk 0:02:17.7]} 14.
Qe2 {[%clk 0:01:53.1]} 14... Qd7 {[%clk 0:01:27.4]} 15. g5 {[%clk 0:01:44.3]}
15... Nh5 {[%clk 0:01:02.7]} 16. Bf3 {[%clk 0:01:43.5]} 16... O-O-O {[%clk
0:00:10.4]} 17. Bg4 {[%clk 0:01:41.1]} 1-0

[Event "*** Titled Tuesday Blitz"]
[Site "Chess.com"]
[Date "2021.04.20"]
[Round "9"]
[White "InvisibleWarrior2252"]
[Black "Jospem"]
[Result "0-1"]
[WhiteElo "2547"]
[BlackElo "2965"]
[TimeControl "180+1"]
[EndTime "11:42:40 PDT"]
[Termination "Jospem won by resignation"]

1. e4 {[%clk 0:03:00.7]} 1... e5 {[%clk 0:03:00.4]} 2. Nf3 {[%clk 0:03:00.6]}
2... Nc6 {[%clk 0:03:01.1]} 3. Bc4 {[%clk 0:03:01.2]} 3... Bc5 {[%clk
0:03:00.9]} 4. c3 {[%clk 0:03:01.3]} 4... d6 {[%clk 0:03:01.1]} 5. d3 {[%clk
0:03:01.5]} 5... Nf6 {[%clk 0:02:57.7]} 6. h3 {[%clk 0:03:01.3]} 6... a5 {[%clk
0:02:57.8]} 7. Bb3 {[%clk 0:03:01.4]} 7... h6 {[%clk 0:02:57.7]} 8. Nbd2 {[%clk
0:03:01.5]} 8... O-O {[%clk 0:02:58]} 9. Nf1 {[%clk 0:03:01.5]} 9... Be6 {[%clk
0:02:57.4]} 10. Ng3 {[%clk 0:03:01.5]} 10... d5 {[%clk 0:02:57.7]} 11. Qe2
{[%clk 0:03:00]} 11... Re8 {[%clk 0:02:57.1]} 12. Nh2 {[%clk 0:02:59.2]} 12...
a4 {[%clk 0:02:57.2]} 13. Bc2 {[%clk 0:02:59.1]} 13... a3 {[%clk 0:02:57.6]} 14.
b3 {[%clk 0:02:54.3]} 14... d4 {[%clk 0:02:57.5]} 15. c4 {[%clk 0:02:54.5]}
15... Bb4+ {[%clk 0:02:57.9]} 16. Kf1 {[%clk 0:02:48.8]} 16... Bc3 {[%clk
0:02:56.4]} 17. Rb1 {[%clk 0:02:49.3]} 17... Nb4 {[%clk 0:02:56.5]} 18. Bd1
{[%clk 0:02:50]} 18... b5 {[%clk 0:02:52.3]} 19. Ng4 {[%clk 0:02:47]} 19... bxc4
{[%clk 0:02:50]} 20. bxc4 {[%clk 0:02:46.2]} 20... c5 {[%clk 0:02:43.7]} 21. Bb3
{[%clk 0:02:41.7]} 21... Ra6 {[%clk 0:02:42.3]} 22. Qf3 {[%clk 0:02:39.8]} 22...
Bc8 {[%clk 0:02:34.3]} 23. Ne2 {[%clk 0:02:08]} 23... Qd7 {[%clk 0:02:20.9]} 24.
Nh2 {[%clk 0:01:46.5]} 24... Bb7 {[%clk 0:02:16.5]} 25. g4 {[%clk 0:01:42.1]}
25... Nxd3 {[%clk 0:02:15.5]} 26. Ng3 {[%clk 0:01:39.3]} 26... Ne1 {[%clk
0:02:06.5]} 27. Qe2 {[%clk 0:01:31.2]} 27... d3 {[%clk 0:02:05.7]} 28. Qe3
{[%clk 0:01:30.1]} 28... Nc2 {[%clk 0:01:33]} 29. Bxc2 {[%clk 0:01:18]} 29...
dxc2 {[%clk 0:01:33.8]} 30. Rxb7 {[%clk 0:01:17.2]} 30... Qxb7 {[%clk
0:01:34.7]} 31. Qxc3 {[%clk 0:01:17.4]} 31... Nxe4 {[%clk 0:01:35.4]} 32. Nxe4
{[%clk 0:01:12.4]} 32... Qxe4 {[%clk 0:01:36.3]} 33. Nf3 {[%clk 0:01:12.8]}
33... Rd8 {[%clk 0:01:29.9]} 34. Kg2 {[%clk 0:01:10.4]} 34... Rd3 {[%clk
0:01:28.8]} 35. Qxd3 {[%clk 0:01:04.2]} 0-1

[Event "*** Titled Tuesday Blitz"]
[Site "Chess.com"]
[Date "2021.04.20"]
[Round "9"]
[White "beautroll"]
[Black "I_Enchev"]
[Result "0-1"]
[WhiteElo "2471"]
[BlackElo "2623"]
[TimeControl "180+1"]
[EndTime "11:42:45 PDT"]
[Termination "I_Enchev won by resignation"]

1. e4 {[%clk 0:03:00.9]} 1... c6 {[%clk 0:02:59.9]} 2. d4 {[%clk 0:03:00.2]}
2... d5 {[%clk 0:03:00.3]} 3. e5 {[%clk 0:02:58.7]} 3... Bf5 {[%clk 0:02:59.5]}
4. h4 {[%clk 0:02:58.8]} 4... h5 {[%clk 0:02:59.2]} 5. Bd3 {[%clk 0:02:58.6]}
5... Bxd3 {[%clk 0:02:57.1]} 6. Qxd3 {[%clk 0:02:59.5]} 6... e6 {[%clk
0:02:57.4]} 7. Nf3 {[%clk 0:02:58.9]} 7... Qa5+ {[%clk 0:02:52.8]} 8. Nbd2
{[%clk 0:02:58.3]} 8... Qa6 {[%clk 0:02:53.3]} 9. c4 {[%clk 0:02:57.7]} 9... Nh6
{[%clk 0:02:53.2]} 10. O-O {[%clk 0:02:52.1]} 10... Nf5 {[%clk 0:02:51.7]} 11.
b3 {[%clk 0:02:48.7]} 11... Be7 {[%clk 0:02:51.9]} 12. g3 {[%clk 0:02:47.4]}
12... Nd7 {[%clk 0:02:43.7]} 13. Bb2 {[%clk 0:02:37.3]} 13... Rd8 {[%clk
0:02:42.6]} 14. Qc2 {[%clk 0:02:33.7]} 14... b5 {[%clk 0:02:32.8]} 15. cxd5
{[%clk 0:02:12.8]} 15... cxd5 {[%clk 0:02:33.7]} 16. Rfc1 {[%clk 0:02:12.7]}
16... O-O {[%clk 0:02:29.8]} 17. Qc6 {[%clk 0:02:08.1]} 17... Nb6 {[%clk
0:02:19]} 18. a4 {[%clk 0:01:59]} 18... bxa4 {[%clk 0:02:07.6]} 19. Rxa4 {[%clk
0:01:44.5]} 19... Qe2 {[%clk 0:02:02.7]} 20. Rxa7 {[%clk 0:01:35.5]} 20... Bb4
{[%clk 0:01:51.1]} 21. Bc3 {[%clk 0:00:58.8]} 21... Rc8 {[%clk 0:01:40.2]} 22.
Qxb6 {[%clk 0:00:56.4]} 22... Bxc3 {[%clk 0:01:37.8]} 23. Qa6 {[%clk 0:00:48.6]}
23... Qxa6 {[%clk 0:01:30.3]} 24. Rxa6 {[%clk 0:00:49.5]} 24... Bxd2 {[%clk
0:01:20.9]} 25. Nxd2 {[%clk 0:00:50.4]} 25... Rxc1+ {[%clk 0:01:19]} 0-1

[Event "*** Titled Tuesday Blitz"]
[Site "Chess.com"]
[Date "2021.04.20"]
[Round "9"]
[White "TigrVShlyape"]
[Black "Sibelephant"]
[Result "1/2-1/2"]
[WhiteElo "2853"]
[BlackElo "3086"]
[TimeControl "180+1"]
[EndTime "11:42:57 PDT"]
[Termination "Game drawn by agreement"]

1. d4 {[%clk 0:03:00.9]} 1... Nf6 {[%clk 0:02:58.5]} 2. Nf3 {[%clk 0:03:01]}
2... g6 {[%clk 0:02:55.2]} 3. Bg5 {[%clk 0:03:00.2]} 3... Bg7 {[%clk 0:02:55]}
4. c3 {[%clk 0:02:59.6]} 4... d6 {[%clk 0:02:47.4]} 5. Nbd2 {[%clk 0:02:58.9]}
5... h6 {[%clk 0:02:47.8]} 6. Bh4 {[%clk 0:02:58.1]} 6... g5 {[%clk 0:02:48.3]}
7. Bg3 {[%clk 0:02:58]} 7... Nh5 {[%clk 0:02:47.8]} 8. e4 {[%clk 0:02:58]} 8...
e6 {[%clk 0:02:45.2]} 9. Nc4 {[%clk 0:02:58.1]} 9... Qe7 {[%clk 0:02:38.2]} 10.
Nfd2 {[%clk 0:02:57.3]} 10... Nxg3 {[%clk 0:02:36.8]} 11. hxg3 {[%clk
0:02:57.4]} 11... Nd7 {[%clk 0:02:34.6]} 12. Ne3 {[%clk 0:02:54.4]} 12... a6
{[%clk 0:02:13.8]} 13. Bd3 {[%clk 0:02:52.6]} 13... c5 {[%clk 0:02:06.1]} 14. d5
{[%clk 0:02:50.3]} 14... b5 {[%clk 0:02:01.7]} 15. a4 {[%clk 0:02:37.3]} 15...
c4 {[%clk 0:01:57.1]} 16. Be2 {[%clk 0:02:34]} 16... Bb7 {[%clk 0:01:49.8]} 17.
axb5 {[%clk 0:02:30.6]} 17... axb5 {[%clk 0:01:49.6]} 18. Rxa8+ {[%clk
0:02:29.2]} 18... Bxa8 {[%clk 0:01:49.7]} 19. dxe6 {[%clk 0:02:28.4]} 19... fxe6
{[%clk 0:01:49.9]} 20. Bh5+ {[%clk 0:02:28.5]} 20... Kf8 {[%clk 0:01:30.6]} 21.
Qa1 {[%clk 0:02:27.2]} 21... Qd8 {[%clk 0:01:04.9]} 22. Qa7 {[%clk 0:02:16.3]}
22... Ke7 {[%clk 0:00:59.6]} 23. O-O {[%clk 0:02:11.1]} 23... Qb6 {[%clk
0:00:55.2]} 24. Qa1 {[%clk 0:01:45.4]} 24... Bb7 {[%clk 0:00:45.2]} 25. Qb1
{[%clk 0:01:40.9]} 25... Rf8 {[%clk 0:00:38.6]} 26. Nf3 {[%clk 0:01:28.7]} 26...
Qc5 {[%clk 0:00:18]} 1/2-1/2